[Event "Titled Tuesday Blitz June 21 Late 2022"]
[White "Hoffmann, Asa"]
[Black "Kovacevic, Radmila"]
[WhiteFideId "2001470"]
[BlackFideId "933171"]
[WhiteElo "2117"]
[BlackElo "2115"]
[Result "1-0"]
[Round "09"]
[TimeControl "180+1"]
[Date "2022.06.22"]
[WhiteClock "0:00:44"]
[BlackClock "0:00:04"]

1. d4 {[%clk 0:02:42]}  e5 {[%clk 0:03:00]} 2. Nf3 {[%clk 0:02:40]}  e4 {[%clk 0:03:00]} 3. Nfd2 {[%clk 0:02:37]}  Nf6 {[%clk 0:02:59]} 4. Nb3 {[%clk 0:02:36]}  a5 {[%clk 0:02:58]} 5. a4 {[%clk 0:02:36]}  Bb4+ {[%clk 0:02:52]} 6. c3 {[%clk 0:02:35]}  Be7 {[%clk 0:02:51]} 7. Bg5 {[%clk 0:02:35]}  h6 {[%clk 0:02:46]} 8. Bh4 {[%clk 0:02:34]}  g5 {[%clk 0:02:34]} 9. Bg3 {[%clk 0:02:34]}  e3 {[%clk 0:02:30]} 10. fxe3 {[%clk 0:02:30]}  Ne4 {[%clk 0:02:30]} 11. N1d2 {[%clk 0:02:27]}  Nxg3 {[%clk 0:02:23]} 12. hxg3 {[%clk 0:02:23]}  d5 {[%clk 0:02:16]} 13. e4 {[%clk 0:02:23]}  dxe4 {[%clk 0:02:12]} 14. Nxe4 {[%clk 0:02:23]}  f5 {[%clk 0:02:12]} 15. Nf2 {[%clk 0:02:17]}  Qd6 {[%clk 0:02:03]} 16. e4 {[%clk 0:02:14]}  Qxg3 {[%clk 0:02:00]} 17. Qh5+ {[%clk 0:02:11]}  Kd8 {[%clk 0:01:55]} 18. Rh3 {[%clk 0:01:58]}  Qd6 {[%clk 0:01:48]} 19. e5 {[%clk 0:01:56]}  Qd5 {[%clk 0:01:44]} 20. Nd2 {[%clk 0:01:54]}  f4 {[%clk 0:01:34]} 21. Rf3 {[%clk 0:01:48]}  Bd7 {[%clk 0:01:14]} 22. Bc4 {[%clk 0:01:47]}  Qc6 {[%clk 0:01:13]} 23. b3 {[%clk 0:01:42]}  Qb6 {[%clk 0:00:56]} 24. Nfe4 {[%clk 0:01:37]}  Na6 {[%clk 0:00:54]} 25. g3 {[%clk 0:01:30]}  Be8 {[%clk 0:00:34]} 26. Bf7 {[%clk 0:01:22]}  fxg3 {[%clk 0:00:28]} 27. Bxe8 {[%clk 0:01:17]}  Rxe8 {[%clk 0:00:28]} 28. Nxg3 {[%clk 0:01:16]}  c5 {[%clk 0:00:24]} 29. d5 {[%clk 0:01:15]}  Rf8 {[%clk 0:00:17]} 30. d6 {[%clk 0:01:10]}  Rxf3 {[%clk 0:00:14]} 31. dxe7+ {[%clk 0:01:10]}  Kxe7 {[%clk 0:00:14]} 32. Qxf3 {[%clk 0:01:10]}  Rf8 {[%clk 0:00:13]} 33. Qe3 {[%clk 0:01:09]}  Qe6 {[%clk 0:00:11]} 34. O-O-O {[%clk 0:01:05]}  Rf4 {[%clk 0:00:11]} 35. Ne2 {[%clk 0:01:04]}  Rh4 {[%clk 0:00:10]} 36. Kc2 {[%clk 0:00:59]}  Qf5+ {[%clk 0:00:10]} 37. Qd3 {[%clk 0:00:58]}  Qe6 {[%clk 0:00:11]} 38. Qh7+ {[%clk 0:00:55]}  Kd8 {[%clk 0:00:10]} 39. Nc4+ {[%clk 0:00:54]}  Kc8 {[%clk 0:00:10]} 40. Qh8+ {[%clk 0:00:53]}  Kc7 {[%clk 0:00:09]} 41. Qg7+ {[%clk 0:00:52]}  Kb8 {[%clk 0:00:10]} 42. Qd7 {[%clk 0:00:51]}  Qg6+ {[%clk 0:00:09]} 43. Kb2 {[%clk 0:00:50]}  Rxc4 {[%clk 0:00:07]} 44. bxc4 {[%clk 0:00:49]}  Qe4 {[%clk 0:00:07]} 45. Rd2 {[%clk 0:00:47]}  Qxc4 {[%clk 0:00:06]} 46. e6 {[%clk 0:00:46]}  b5 {[%clk 0:00:05]} 47. e7 {[%clk 0:00:46]}  Nb4 {[%clk 0:00:04]} 48. e8=R# {[%clk 0:00:44]} 1-0


[Site "https://www.chess.com"]

[Event "Titled Tuesday Blitz June 21 Late 2022"]
[White "Jian, Alex"]
[Black "Navarrete Mendez, Gonzalo Alberto"]
[WhiteFideId "30901022"]
[BlackFideId "5106850"]
[WhiteElo "2111"]
[BlackElo "2261"]
[Result "0-1"]
[Round "09"]
[TimeControl "180+1"]
[Date "2022.06.22"]
[WhiteClock "0:00:07"]
[BlackClock "0:01:10"]

1. Nf3 {[%clk 0:03:00]}  d5 {[%clk 0:02:59]} 2. h3 {[%clk 0:02:57]}  Nc6 {[%clk 0:02:45]} 3. d4 {[%clk 0:02:55]}  Bf5 {[%clk 0:02:43]} 4. g4 {[%clk 0:02:44]}  Bg6 {[%clk 0:02:40]} 5. Nh4 {[%clk 0:02:42]}  e5 {[%clk 0:02:36]} 6. Nxg6 {[%clk 0:02:41]}  hxg6 {[%clk 0:02:37]} 7. dxe5 {[%clk 0:02:40]}  Nxe5 {[%clk 0:02:38]} 8. Bg2 {[%clk 0:02:40]}  c6 {[%clk 0:02:37]} 9. Nd2 {[%clk 0:02:36]}  Nf6 {[%clk 0:02:37]} 10. Nf3 {[%clk 0:02:32]}  Bd6 {[%clk 0:02:35]} 11. Nxe5 {[%clk 0:02:27]}  Bxe5 {[%clk 0:02:36]} 12. c3 {[%clk 0:02:27]}  Qe7 {[%clk 0:02:36]} 13. Be3 {[%clk 0:02:20]}  Bc7 {[%clk 0:02:26]} 14. Qb3 {[%clk 0:02:17]}  O-O {[%clk 0:02:09]} 15. O-O-O {[%clk 0:02:01]}  Bb6 {[%clk 0:02:04]} 16. Rd3 {[%clk 0:01:27]}  Ne4 {[%clk 0:02:01]} 17. Bxe4 {[%clk 0:01:18]}  dxe4 {[%clk 0:01:57]} 18. Rd2 {[%clk 0:01:16]}  Bxe3 {[%clk 0:01:56]} 19. fxe3 {[%clk 0:01:16]}  Qc5 {[%clk 0:01:52]} 20. Rd4 {[%clk 0:01:15]}  Rae8 {[%clk 0:01:34]} 21. Qxb7 {[%clk 0:01:08]}  Qg5 {[%clk 0:01:23]} 22. Qxc6 {[%clk 0:00:36]}  Qxe3+ {[%clk 0:01:22]} 23. Rd2 {[%clk 0:00:37]}  Rd8 {[%clk 0:01:09]} 24. Rd1 {[%clk 0:00:11]}  Rxd2 {[%clk 0:01:09]} 25. Rxd2 {[%clk 0:00:12]}  Rd8 {[%clk 0:01:09]} 26. Kb1 {[%clk 0:00:07]}  Qxd2 {[%clk 0:01:08]} 27. a3 {[%clk 0:00:07]}  Qd1+ {[%clk 0:01:08]} 28. Ka2 {[%clk 0:00:07]}  Qd5+ {[%clk 0:01:08]} 29. Qxd5 {[%clk 0:00:08]}  Rxd5 {[%clk 0:01:09]} 30. Kb3 {[%clk 0:00:07]}  Rd2 {[%clk 0:01:09]} 31. e3 {[%clk 0:00:07]}  Rd3 {[%clk 0:01:09]} 32. Kc2 {[%clk 0:00:07]}  Rxe3 {[%clk 0:01:10]} 0-1


[Site "https://www.chess.com"]

[Event "Titled Tuesday Blitz June 21 Late 2022"]
[White "Jovic, Stanoje"]
[Black "Shuvalova, Polina"]
[WhiteFideId "905020"]
[BlackFideId "24171760"]
[WhiteElo "2286"]
[BlackElo "2330"]
[Result "1-0"]
[Round "09"]
[TimeControl "180+1"]
[Date "2022.06.22"]
[WhiteClock "0:01:14"]
[BlackClock "0:00:12"]

1. c4 {[%clk 0:03:00]}  e6 {[%clk 0:02:52]} 2. g3 {[%clk 0:03:00]}  d5 {[%clk 0:02:51]} 3. Bg2 {[%clk 0:03:01]}  Nf6 {[%clk 0:02:50]} 4. Nf3 {[%clk 0:03:01]}  Be7 {[%clk 0:02:48]} 5. O-O {[%clk 0:03:01]}  O-O {[%clk 0:02:49]} 6. d4 {[%clk 0:03:01]}  c6 {[%clk 0:02:47]} 7. b3 {[%clk 0:02:55]}  Nbd7 {[%clk 0:02:46]} 8. Qc2 {[%clk 0:02:54]}  b6 {[%clk 0:02:45]} 9. Nbd2 {[%clk 0:02:53]}  Bb7 {[%clk 0:02:44]} 10. e4 {[%clk 0:02:51]}  Rc8 {[%clk 0:02:43]} 11. e5 {[%clk 0:02:51]}  Ne8 {[%clk 0:02:43]} 12. h4 {[%clk 0:02:50]}  h6 {[%clk 0:02:41]} 13. Bb2 {[%clk 0:02:39]}  Nc7 {[%clk 0:02:39]} 14. Rad1 {[%clk 0:02:33]}  c5 {[%clk 0:02:35]} 15. dxc5 {[%clk 0:02:31]}  Bxc5 {[%clk 0:02:33]} 16. Qb1 {[%clk 0:02:25]}  Qe7 {[%clk 0:02:33]} 17. Kh2 {[%clk 0:02:21]}  Rfd8 {[%clk 0:02:30]} 18. g4 {[%clk 0:02:13]}  dxc4 {[%clk 0:02:25]} 19. bxc4 {[%clk 0:02:10]}  Nf8 {[%clk 0:02:20]} 20. g5 {[%clk 0:02:06]}  hxg5 {[%clk 0:02:18]} 21. Nxg5 {[%clk 0:02:03]}  Bxg2 {[%clk 0:02:15]} 22. Kxg2 {[%clk 0:02:03]}  Ng6 {[%clk 0:01:58]} 23. Ndf3 {[%clk 0:01:58]}  Na6 {[%clk 0:01:40]} 24. h5 {[%clk 0:01:55]}  Nf8 {[%clk 0:01:38]} 25. h6 {[%clk 0:01:50]}  gxh6 {[%clk 0:01:36]} 26. Ne4 {[%clk 0:01:48]}  Nh7 {[%clk 0:01:27]} 27. Rh1 {[%clk 0:01:45]}  Rxd1 {[%clk 0:01:25]} 28. Qxd1 {[%clk 0:01:43]}  Qb7 {[%clk 0:01:08]} 29. Qb1 {[%clk 0:01:37]}  Kg7 {[%clk 0:01:01]} 30. Bc1 {[%clk 0:01:35]}  Rg8 {[%clk 0:00:56]} 31. Bxh6+ {[%clk 0:01:31]}  Kh8+ {[%clk 0:00:56]} 32. Kf1 {[%clk 0:01:28]}  Rg6 {[%clk 0:00:42]} 33. Bg5 {[%clk 0:01:23]}  Nb4 {[%clk 0:00:40]} 34. Nf6 {[%clk 0:01:15]}  Rxf6 {[%clk 0:00:13]} 35. Bxf6+ {[%clk 0:01:14]}  Kg8 {[%clk 0:00:12]} 36. Qxh7+ {[%clk 0:01:14]} 1-0


[Site "https://www.chess.com"]

[Event "Titled Tuesday Blitz June 21 Late 2022"]
[White "Kamsky, Gata"]
[Black "Andreikin, Dmitry"]
[WhiteFideId "2000024"]
[BlackFideId "4158814"]
[WhiteElo "2645"]
[BlackElo "2736"]
[Result "1-0"]
[Round "09"]
[TimeControl "180+1"]
[Date "2022.06.21"]
[WhiteClock "0:00:34"]
[BlackClock "0:00:01"]

1. d4 {[%clk 0:03:00]}  Nf6 {[%clk 0:03:00]} 2. Nf3 {[%clk 0:02:58]}  d5 {[%clk 0:02:54]} 3. Bf4 {[%clk 0:02:56]}  c5 {[%clk 0:02:54]} 4. e3 {[%clk 0:02:55]}  Nc6 {[%clk 0:02:54]} 5. c3 {[%clk 0:02:53]}  Bg4 {[%clk 0:02:46]} 6. Qb3 {[%clk 0:02:50]}  Qc8 {[%clk 0:02:43]} 7. Ne5 {[%clk 0:02:50]}  c4 {[%clk 0:02:38]} 8. Qa4 {[%clk 0:02:48]}  Bd7 {[%clk 0:02:35]} 9. Nxd7 {[%clk 0:02:48]}  Nxd7 {[%clk 0:02:36]} 10. b3 {[%clk 0:02:48]}  e5 {[%clk 0:02:07]} 11. Bxe5 {[%clk 0:02:47]}  Ncxe5 {[%clk 0:01:43]} 12. dxe5 {[%clk 0:02:46]}  Be7 {[%clk 0:01:40]} 13. bxc4 {[%clk 0:02:44]}  dxc4 {[%clk 0:01:41]} 14. Qxc4 {[%clk 0:02:22]}  O-O {[%clk 0:01:40]} 15. e6 {[%clk 0:02:17]}  Ne5 {[%clk 0:01:27]} 16. exf7+ {[%clk 0:02:17]}  Rxf7 {[%clk 0:01:24]} 17. Qxc8+ {[%clk 0:02:16]}  Rxc8 {[%clk 0:01:25]} 18. Be2 {[%clk 0:02:14]}  Bf6 {[%clk 0:01:23]} 19. O-O {[%clk 0:02:10]}  Kf8 {[%clk 0:01:22]} 20. a4 {[%clk 0:02:10]}  Rfc7 {[%clk 0:01:15]} 21. Rd1 {[%clk 0:02:07]}  Ke7 {[%clk 0:01:06]} 22. g3 {[%clk 0:02:05]}  Nc4 {[%clk 0:01:02]} 23. Ra2 {[%clk 0:01:58]}  b6 {[%clk 0:00:59]} 24. Kg2 {[%clk 0:01:56]}  Na5 {[%clk 0:00:57]} 25. Ba6 {[%clk 0:01:53]}  Rd8 {[%clk 0:00:55]} 26. Rxd8 {[%clk 0:01:51]}  Kxd8 {[%clk 0:00:56]} 27. Na3 {[%clk 0:01:46]}  Nb3 {[%clk 0:00:39]} 28. Nb5 {[%clk 0:01:43]}  Rd7 {[%clk 0:00:38]} 29. Nd4 {[%clk 0:01:43]}  Nc5 {[%clk 0:00:36]} 30. Bb5 {[%clk 0:01:43]}  Rc7 {[%clk 0:00:36]} 31. a5 {[%clk 0:01:42]}  bxa5 {[%clk 0:00:32]} 32. Rxa5 {[%clk 0:01:41]}  Ke7 {[%clk 0:00:30]} 33. Nc6+ {[%clk 0:01:30]}  Kd6 {[%clk 0:00:28]} 34. Nxa7 {[%clk 0:01:30]}  Bxc3 {[%clk 0:00:27]} 35. Ra2 {[%clk 0:01:30]}  Bf6 {[%clk 0:00:21]} 36. Be2 {[%clk 0:01:30]}  Rb7 {[%clk 0:00:21]} 37. Nb5+ {[%clk 0:01:29]}  Ke7 {[%clk 0:00:21]} 38. Bc4 {[%clk 0:01:27]}  Ne4 {[%clk 0:00:21]} 39. Ra6 {[%clk 0:01:26]}  Nd2 {[%clk 0:00:17]} 40. Re6+ {[%clk 0:01:23]}  Kd8 {[%clk 0:00:16]} 41. Bd3 {[%clk 0:01:19]}  h6 {[%clk 0:00:14]} 42. h4 {[%clk 0:01:19]}  Rd7 {[%clk 0:00:13]} 43. Bg6 {[%clk 0:01:16]}  Re7 {[%clk 0:00:11]} 44. Ra6 {[%clk 0:01:14]}  Rb7 {[%clk 0:00:09]} 45. Ra8+ {[%clk 0:01:07]}  Ke7 {[%clk 0:00:07]} 46. Bd3 {[%clk 0:01:05]}  Nb3 {[%clk 0:00:06]} 47. Rc8 {[%clk 0:01:00]}  Na5 {[%clk 0:00:05]} 48. e4 {[%clk 0:00:57]}  Rd7 {[%clk 0:00:05]} 49. Be2 {[%clk 0:00:53]}  Rd2 {[%clk 0:00:04]} 50. Bg4 {[%clk 0:00:52]}  Nb3 {[%clk 0:00:04]} 51. Rc7+ {[%clk 0:00:52]}  Kd8 {[%clk 0:00:05]} 52. Rc8+ {[%clk 0:00:50]}  Ke7 {[%clk 0:00:05]} 53. h5 {[%clk 0:00:44]}  Nd4 {[%clk 0:00:05]} 54. Nc3 {[%clk 0:00:42]}  Nb3 {[%clk 0:00:04]} 55. Nd5+ {[%clk 0:00:41]}  Kd6 {[%clk 0:00:04]} 56. Nxf6 {[%clk 0:00:41]}  gxf6 {[%clk 0:00:05]} 57. Rh8 {[%clk 0:00:40]}  Nc5 {[%clk 0:00:05]} 58. Kf3 {[%clk 0:00:38]}  Ke5 {[%clk 0:00:04]} 59. Bf5 {[%clk 0:00:34]}  Nb3 {[%clk 0:00:02]} 60. Ke3 {[%clk 0:00:34]}  Rb2 {[%clk 0:00:01]} 61. Re8+ {[%clk 0:00:34]}  Kd6 {[%clk 0:00:01]} 62. Re6+ {[%clk 0:00:34]}  Kc5 {[%clk 0:00:01]} 63. Rxf6 {[%clk 0:00:35]}  Nd4 {[%clk 0:00:01]} 64. Rxh6 {[%clk 0:00:34]} 1-0


[Site "https://www.chess.com"]

[Event "Titled Tuesday Blitz June 21 Late 2022"]
[White "Khan, Taffin"]
[Black "Quirke, Jeffrey"]
[WhiteFideId "19700024"]
[BlackFideId "2013029"]
[WhiteElo "1939"]
[BlackElo "2183"]
[Result "1/2-1/2"]
[Round "09"]
[TimeControl "180+1"]
[Date "2022.06.22"]
[WhiteClock "0:00:25"]
[BlackClock "0:00:09"]

1. e4 {[%clk 0:02:56]}  e5 {[%clk 0:02:59]} 2. Bc4 {[%clk 0:02:54]}  Nf6 {[%clk 0:02:59]} 3. Nc3 {[%clk 0:02:51]}  Bc5 {[%clk 0:02:50]} 4. d3 {[%clk 0:02:50]}  h6 {[%clk 0:02:47]} 5. f4 {[%clk 0:02:49]}  d6 {[%clk 0:02:45]} 6. Nf3 {[%clk 0:02:44]}  Nc6 {[%clk 0:02:44]} 7. Na4 {[%clk 0:02:43]}  Bb6 {[%clk 0:02:41]} 8. Nxb6 {[%clk 0:02:42]}  axb6 {[%clk 0:02:41]} 9. a3 {[%clk 0:02:41]}  O-O {[%clk 0:02:37]} 10. O-O {[%clk 0:02:40]}  Be6 {[%clk 0:02:29]} 11. Bxe6 {[%clk 0:02:08]}  fxe6 {[%clk 0:02:30]} 12. fxe5 {[%clk 0:02:06]}  dxe5 {[%clk 0:02:28]} 13. h3 {[%clk 0:02:05]}  Qd6 {[%clk 0:02:26]} 14. Be3 {[%clk 0:02:01]}  Rad8 {[%clk 0:02:20]} 15. Qe1 {[%clk 0:01:56]}  Nh5 {[%clk 0:02:05]} 16. Qh4 {[%clk 0:01:49]}  Nf4 {[%clk 0:02:03]} 17. Rae1 {[%clk 0:01:44]}  Rd7 {[%clk 0:01:36]} 18. Nxe5 {[%clk 0:01:28]}  Qxe5 {[%clk 0:01:36]} 19. Rxf4 {[%clk 0:01:13]}  Rxf4 {[%clk 0:01:32]} 20. Qxf4 {[%clk 0:01:12]}  Qxb2 {[%clk 0:01:25]} 21. Rf1 {[%clk 0:01:11]}  Qxc2 {[%clk 0:01:15]} 22. Bc1 {[%clk 0:00:51]}  Qxd3 {[%clk 0:01:07]} 23. Qg4 {[%clk 0:00:47]}  Nd4 {[%clk 0:00:39]} 24. Bxh6 {[%clk 0:00:37]}  Kh7 {[%clk 0:00:12]} 25. Bf4 {[%clk 0:00:34]}  Ne2+ {[%clk 0:00:11]} 26. Kh2 {[%clk 0:00:30]}  Nxf4 {[%clk 0:00:10]} 27. Rxf4 {[%clk 0:00:29]}  Qd6 {[%clk 0:00:08]} 28. Qh5+ {[%clk 0:00:26]}  Kg8 {[%clk 0:00:08]} 29. Qe8+ {[%clk 0:00:26]}  Kh7 {[%clk 0:00:08]} 30. Qh5+ {[%clk 0:00:26]}  Kg8 {[%clk 0:00:09]} 31. Qe8+ {[%clk 0:00:25]}  Kh7 {[%clk 0:00:09]} 32. Qh5+ {[%clk 0:00:25]} 1/2-1/2


[Site "https://www.chess.com"]

[Event "Titled Tuesday Blitz June 21 Late 2022"]
[White "Khismatullin, Denis"]
[Black "Abarca Gonzalez, Nicolas"]
[WhiteFideId "4142578"]
[BlackFideId "3409422"]
[WhiteElo "2543"]
[BlackElo "2504"]
[Result "0-1"]
[Round "09"]
[TimeControl "180+1"]
[Date "2022.06.21"]
[WhiteClock "0:00:14"]
[BlackClock "0:00:39"]

1. Nf3 {[%clk 0:02:55]}  Nf6 {[%clk 0:02:59]} 2. c4 {[%clk 0:02:55]}  g6 {[%clk 0:02:58]} 3. g3 {[%clk 0:02:55]}  Bg7 {[%clk 0:02:59]} 4. Bg2 {[%clk 0:02:56]}  O-O {[%clk 0:02:58]} 5. O-O {[%clk 0:02:56]}  d6 {[%clk 0:02:58]} 6. d4 {[%clk 0:02:56]}  Bf5 {[%clk 0:02:57]} 7. Qb3 {[%clk 0:02:47]}  Qc8 {[%clk 0:02:54]} 8. Nc3 {[%clk 0:02:41]}  Ne4 {[%clk 0:02:51]} 9. Nh4 {[%clk 0:02:30]}  Nxc3 {[%clk 0:02:50]} 10. bxc3 {[%clk 0:02:30]}  Nc6 {[%clk 0:02:45]} 11. Nxf5 {[%clk 0:02:28]}  gxf5 {[%clk 0:02:45]} 12. Rb1 {[%clk 0:02:22]}  Rb8 {[%clk 0:02:39]} 13. Re1 {[%clk 0:02:20]}  Na5 {[%clk 0:02:34]} 14. Qa4 {[%clk 0:02:11]}  b6 {[%clk 0:02:34]} 15. e4 {[%clk 0:02:11]}  c5 {[%clk 0:02:26]} 16. Bg5 {[%clk 0:01:46]}  Re8 {[%clk 0:02:20]} 17. dxc5 {[%clk 0:01:34]}  Qxc5 {[%clk 0:02:17]} 18. exf5 {[%clk 0:01:35]}  Qxf5 {[%clk 0:02:13]} 19. Rb5 {[%clk 0:01:29]}  e5 {[%clk 0:02:08]} 20. Be3 {[%clk 0:01:20]}  Rbc8 {[%clk 0:02:04]} 21. Bd5 {[%clk 0:01:19]}  Re7 {[%clk 0:01:57]} 22. c5 {[%clk 0:01:14]}  dxc5 {[%clk 0:01:55]} 23. Bxc5 {[%clk 0:01:15]}  Rec7 {[%clk 0:01:44]} 24. Bb4 {[%clk 0:01:13]}  Nc6 {[%clk 0:01:35]} 25. Bxc6 {[%clk 0:01:09]}  Rxc6 {[%clk 0:01:35]} 26. Qxa7 {[%clk 0:01:10]}  Qe6 {[%clk 0:01:32]} 27. a4 {[%clk 0:01:07]}  e4 {[%clk 0:01:28]} 28. Re3 {[%clk 0:01:01]}  Bh6 {[%clk 0:01:19]} 29. Re2 {[%clk 0:00:56]}  e3 {[%clk 0:01:18]} 30. f4 {[%clk 0:00:29]}  Bg7 {[%clk 0:00:58]} 31. Rg5 {[%clk 0:00:28]}  h6 {[%clk 0:00:56]} 32. Rxg7+ {[%clk 0:00:27]}  Kxg7 {[%clk 0:00:56]} 33. a5 {[%clk 0:00:27]}  bxa5 {[%clk 0:00:54]} 34. Rxe3 {[%clk 0:00:27]}  Ra6 {[%clk 0:00:48]} 35. Qd4+ {[%clk 0:00:20]}  Qf6 {[%clk 0:00:48]} 36. Qd7 {[%clk 0:00:20]}  axb4 {[%clk 0:00:40]} 37. Qxc8 {[%clk 0:00:20]}  b3 {[%clk 0:00:41]} 38. Re8 {[%clk 0:00:18]}  b2 {[%clk 0:00:40]} 39. Re1 {[%clk 0:00:14]}  Ra1 {[%clk 0:00:39]} 0-1


[Site "https://www.chess.com"]

[Event "Titled Tuesday Blitz June 21 Late 2022"]
[White "Koellner, Ruben Gideon"]
[Black "Fishbein, Mitch"]
[WhiteFideId "12993093"]
[BlackFideId "30922917"]
[WhiteElo "2553"]
[BlackElo "1939"]
[Result "1-0"]
[Round "09"]
[TimeControl "180+1"]
[Date "2022.06.22"]
[WhiteClock "0:00:11"]
[BlackClock "0:00:20"]

1. d4 {[%clk 0:02:28]}  Nf6 {[%clk 0:02:56]} 2. Bg5 {[%clk 0:02:19]}  d5 {[%clk 0:02:52]} 3. e3 {[%clk 0:02:18]}  c5 {[%clk 0:02:51]} 4. Bxf6 {[%clk 0:02:17]}  gxf6 {[%clk 0:02:50]} 5. dxc5 {[%clk 0:02:17]}  e6 {[%clk 0:02:49]} 6. c4 {[%clk 0:02:14]}  dxc4 {[%clk 0:02:47]} 7. Nd2 {[%clk 0:02:14]}  Bxc5 {[%clk 0:02:45]} 8. Bxc4 {[%clk 0:02:13]}  Nc6 {[%clk 0:02:44]} 9. Ngf3 {[%clk 0:02:12]}  O-O {[%clk 0:02:34]} 10. a3 {[%clk 0:02:08]}  f5 {[%clk 0:02:33]} 11. g4 {[%clk 0:02:07]}  f4 {[%clk 0:02:31]} 12. exf4 {[%clk 0:02:03]}  Qf6 {[%clk 0:02:28]} 13. Qe2 {[%clk 0:01:45]}  Qxf4 {[%clk 0:02:04]} 14. Ne4 {[%clk 0:01:43]}  Nd4 {[%clk 0:01:55]} 15. Nxd4 {[%clk 0:01:37]}  Bxd4 {[%clk 0:01:56]} 16. Rd1 {[%clk 0:01:32]}  Bg7 {[%clk 0:01:56]} 17. g5 {[%clk 0:01:27]}  b5 {[%clk 0:01:55]} 18. Bd3 {[%clk 0:01:22]}  Bb7 {[%clk 0:01:53]} 19. Rg1 {[%clk 0:01:22]}  Kh8 {[%clk 0:01:32]} 20. Rg4 {[%clk 0:00:32]}  Qxh2 {[%clk 0:01:17]} 21. Qf3 {[%clk 0:00:31]}  Rad8 {[%clk 0:01:10]} 22. Ke2 {[%clk 0:00:31]}  Qe5 {[%clk 0:00:33]} 23. Rh4 {[%clk 0:00:25]}  Rxd3 {[%clk 0:00:26]} 24. Qxd3 {[%clk 0:00:16]}  Qxb2+ {[%clk 0:00:24]} 25. Kf1 {[%clk 0:00:12]}  Qe5 {[%clk 0:00:24]} 26. Nf6 {[%clk 0:00:11]}  h6 {[%clk 0:00:20]} 27. Qh7# {[%clk 0:00:11]} 1-0


[Site "https://www.chess.com"]

[Event "Titled Tuesday Blitz June 21 Late 2022"]
[White "Konaplev, Anton"]
[Black "Adla, Diego"]
[WhiteFideId "24165646"]
[BlackFideId "100072"]
[WhiteElo "2208"]
[BlackElo "2377"]
[Result "1-0"]
[Round "09"]
[TimeControl "180+1"]
[Date "2022.06.22"]
[WhiteClock "0:01:33"]
[BlackClock "0:01:50"]

1. d4 {[%clk 0:03:00]}  Nf6 {[%clk 0:02:59]} 2. c4 {[%clk 0:03:00]}  e6 {[%clk 0:02:58]} 3. Nc3 {[%clk 0:03:00]}  Bb4 {[%clk 0:02:57]} 4. e3 {[%clk 0:03:00]}  c5 {[%clk 0:02:57]} 5. a3 {[%clk 0:02:58]}  Bxc3+ {[%clk 0:02:56]} 6. bxc3 {[%clk 0:02:59]}  Nc6 {[%clk 0:02:55]} 7. Bd3 {[%clk 0:02:59]}  O-O {[%clk 0:02:53]} 8. Ne2 {[%clk 0:02:59]}  b6 {[%clk 0:02:53]} 9. e4 {[%clk 0:02:59]}  Ne8 {[%clk 0:02:52]} 10. Be3 {[%clk 0:02:55]}  Ba6 {[%clk 0:02:51]} 11. Ng3 {[%clk 0:02:53]}  Na5 {[%clk 0:02:43]} 12. Qe2 {[%clk 0:02:51]}  Nd6 {[%clk 0:02:40]} 13. e5 {[%clk 0:02:45]}  Ndxc4 {[%clk 0:02:39]} 14. Qh5 {[%clk 0:02:02]}  g6 {[%clk 0:02:36]} 15. Qh6 {[%clk 0:02:01]}  Nxe3 {[%clk 0:02:21]} 16. Nh5 {[%clk 0:01:43]}  Nxg2+ {[%clk 0:01:50]} 17. Kd1 {[%clk 0:01:33]} 1-0


[Site "https://www.chess.com"]

[Event "Titled Tuesday Blitz June 21 Late 2022"]
[White "Maltsevskaya, Aleksandra"]
[Black "Golubev, Mikhail"]
[WhiteFideId "24174041"]
[BlackFideId "14100983"]
[WhiteElo "2243"]
[BlackElo "2374"]
[Result "1-0"]
[Round "09"]
[TimeControl "180+1"]
[Date "2022.06.21"]
[WhiteClock "0:00:04"]
[BlackClock "0:00:02"]

1. e4 {[%clk 0:03:00]}  c5 {[%clk 0:02:59]} 2. Nf3 {[%clk 0:02:59]}  d6 {[%clk 0:02:59]} 3. d4 {[%clk 0:02:58]}  cxd4 {[%clk 0:02:59]} 4. Nxd4 {[%clk 0:02:59]}  Nf6 {[%clk 0:02:59]} 5. Nc3 {[%clk 0:02:59]}  g6 {[%clk 0:02:59]} 6. Be3 {[%clk 0:02:57]}  Bg7 {[%clk 0:02:59]} 7. Bc4 {[%clk 0:02:56]}  O-O {[%clk 0:02:56]} 8. h3 {[%clk 0:02:52]}  Nc6 {[%clk 0:02:56]} 9. Bb3 {[%clk 0:02:48]}  Na5 {[%clk 0:02:50]} 10. O-O {[%clk 0:02:47]}  b6 {[%clk 0:02:50]} 11. f4 {[%clk 0:02:41]}  Bb7 {[%clk 0:02:37]} 12. Qf3 {[%clk 0:02:32]}  Rc8 {[%clk 0:02:28]} 13. Rad1 {[%clk 0:02:27]}  Rxc3 {[%clk 0:02:19]} 14. bxc3 {[%clk 0:02:25]}  Nxe4 {[%clk 0:02:17]} 15. Qg4 {[%clk 0:02:13]}  Nxb3 {[%clk 0:01:52]} 16. cxb3 {[%clk 0:01:22]}  Nxc3 {[%clk 0:01:50]} 17. Rc1 {[%clk 0:01:21]}  h5 {[%clk 0:01:34]} 18. Qg5 {[%clk 0:01:08]}  Bxd4 {[%clk 0:01:18]} 19. Bxd4 {[%clk 0:01:08]}  Ne2+ {[%clk 0:01:18]} 20. Kh2 {[%clk 0:01:06]}  Nxd4 {[%clk 0:01:18]} 21. f5 {[%clk 0:01:06]}  e5 {[%clk 0:01:13]} 22. f6 {[%clk 0:01:03]}  Kh7 {[%clk 0:01:09]} 23. Rcd1 {[%clk 0:00:59]}  Qd7 {[%clk 0:00:35]} 24. Qh4 {[%clk 0:00:44]}  Rc8 {[%clk 0:00:25]} 25. Rf2 {[%clk 0:00:28]}  Nf5 {[%clk 0:00:18]} 26. Qg5 {[%clk 0:00:24]}  e4 {[%clk 0:00:08]} 27. g4 {[%clk 0:00:23]}  hxg4 {[%clk 0:00:06]} 28. hxg4 {[%clk 0:00:23]}  Nh6 {[%clk 0:00:06]} 29. Kg3 {[%clk 0:00:20]}  Rc5 {[%clk 0:00:06]} 30. Rf5 {[%clk 0:00:18]}  Rxf5 {[%clk 0:00:05]} 31. gxf5 {[%clk 0:00:15]}  Qxf5 {[%clk 0:00:06]} 32. Qxf5 {[%clk 0:00:08]}  Nxf5+ {[%clk 0:00:06]} 33. Kf4 {[%clk 0:00:06]}  e3 {[%clk 0:00:06]} 34. Rc1 {[%clk 0:00:04]}  Bd5 {[%clk 0:00:06]} 35. Rd1 {[%clk 0:00:02]}  Be6 {[%clk 0:00:06]} 36. Rh1+ {[%clk 0:00:02]}  Kg8 {[%clk 0:00:05]} 37. Rc1 {[%clk 0:00:02]}  d5 {[%clk 0:00:05]} 38. b4 {[%clk 0:00:02]}  d4 {[%clk 0:00:05]} 39. Ke4 {[%clk 0:00:03]}  e2 {[%clk 0:00:05]} 40. Kd3 {[%clk 0:00:03]}  Ng3 {[%clk 0:00:03]} 41. Kxd4 {[%clk 0:00:03]}  Bg4 {[%clk 0:00:03]} 42. Ke3 {[%clk 0:00:03]}  Nf1+ {[%clk 0:00:03]} 43. Kf2 {[%clk 0:00:04]}  Bh5 {[%clk 0:00:03]} 44. Rc8+ {[%clk 0:00:04]}  Kh7 {[%clk 0:00:03]} 45. Rf8 {[%clk 0:00:04]}  g5 {[%clk 0:00:03]} 46. Re8 {[%clk 0:00:03]}  g4 {[%clk 0:00:03]} 47. Kxe2 {[%clk 0:00:02]}  g3+ {[%clk 0:00:03]} 48. Kxf1 {[%clk 0:00:02]}  Kg6 {[%clk 0:00:02]} 49. Kg2 {[%clk 0:00:03]}  Kxf6 {[%clk 0:00:02]} 50. Kxg3 {[%clk 0:00:03]}  Bd1 {[%clk 0:00:02]} 51. Rd8 {[%clk 0:00:03]}  Ba4 {[%clk 0:00:02]} 52. Ra8 {[%clk 0:00:03]}  b5 {[%clk 0:00:03]} 53. Rxa7 {[%clk 0:00:04]}  Ke5 {[%clk 0:00:03]} 54. Rxf7 {[%clk 0:00:03]}  Kd4 {[%clk 0:00:02]} 55. Rc7 {[%clk 0:00:04]} 1-0


[Site "https://www.chess.com"]